fUSD/lending_fUSD_20260520
["ID","MTS","AMOUNT","RATE_DAILY","PERIOD"]
[422654623,1779211841000,-500.0,0.00014999,2]
[422654619,1779211841000,-500.0,0.00014999,2]
[422654617,1779211841000,-512.8400443,0.00014999,2]
[422654627,1779211841000,-500.0,0.00014999,2]
[422654621,1779211841000,-512.94389956,0.00014999,2]
[422654622,1779211841000,-500.0,0.00014999,2]
[422654620,1779211841000,-500.0,0.00014999,2]
[422654575,1779211841000,-625.64,0.00014899,2]
[422654624,1779211841000,-500.0,0.00014999,2]
[422654625,1779211841000,-500.0,0.00014999,2]
[422654630,1779211841000,-349.78123329,0.00014999,2]
[422654631,1779211841000,-500.0,0.00014999,2]
[422654633,1779211841000,-500.0,0.00014999,2]
[422654632,1779211841000,-500.0,0.00014999,2]
[422654634,1779211841000,-209.51466794,0.00014999,2]
[422654635,1779211841000,-500.0,0.00014999,2]
[422654636,1779211841000,-500.0,0.00014999,2]
[422654612,1779211841000,-500.0,0.00014999,2]
[422654609,1779211841000,-500.0,0.00014999,2]
[422654626,1779211841000,-500.0,0.00014999,2]
[422654608,1779211841000,-508.68888162,0.00014999,2]
[422654607,1779211841000,-500.0,0.00014999,2]
[422654579,1779211841000,-2777.0,0.000149,5]
[422654578,1779211841000,-625.75,0.00014899,2]
[422654580,1779211841000,-10000.0,0.000149,2]
[422654581,1779211841000,-1290.54801078,0.000149,2]
[422654582,1779211841000,-2816.0,0.000149,5]
[422654583,1779211841000,-1254.07364838,0.000149,2]
[422654585,1779211841000,-162.87295535,0.000149,2]
[422654588,1779211841000,-412.0,0.00014905,2]
[422654590,1779211841000,-150.0,0.00014936,2]
[422654584,1779211841000,-22668.90055874,0.000149,2]
[422654586,1779211841000,-730.84303976,0.000149,2]
[422654589,1779211841000,-417.0,0.00014908,2]
[422654591,1779211841000,-415.0,0.00014941,2]
[422654603,1779211841000,-412.0,0.00014993,2]
[422654606,1779211841000,-417.0,0.00014998,2]
[422654593,1779211841000,-417.0,0.00014972,2]
[422654604,1779211841000,-1681.26,0.00014993,2]
[422654602,1779211841000,-170.41262241,0.00014986,2]
[422654598,1779211841000,-220.99048533,0.00014986,2]
[422654596,1779211841000,-152.75252403,0.00014986,2]
[422654600,1779211841000,-152.10400648,0.00014986,2]
[422654601,1779211841000,-225.67224447,0.00014986,2]
[422654597,1779211841000,-153.99235667,0.00014986,2]
[422654595,1779211841000,-284.58525916,0.00014986,2]
[422654592,1779211841000,-417.0,0.0001497,2]
[422654594,1779211841000,-531.0,0.00014979,2]
[422654599,1779211841000,-254.67783396,0.00014986,2]
[422654665,1779211842000,-291.68040773,0.00014999,2]
[422654670,1779211842000,-500.0,0.00014999,2]
[422654669,1779211842000,-500.0,0.00014999,2]
[422654668,1779211842000,-500.0,0.00014999,2]
[422654675,1779211842000,-500.0,0.00014999,2]
[422654667,1779211842000,-500.0,0.00014999,2]
[422654671,1779211842000,-500.0,0.00014999,2]
[422654673,1779211842000,-500.0,0.00014999,2]
[422654678,1779211842000,-500.0,0.00014999,2]
[422654677,1779211842000,-500.0,0.00014999,2]
[422654676,1779211842000,-500.0,0.00014999,2]
[422654679,1779211842000,-500.0,0.00014999,2]
[422654680,1779211842000,-500.0,0.00014999,2]
[422654681,1779211842000,-500.0,0.00014999,2]
[422654684,1779211842000,-500.0,0.00014999,2]
[422654674,1779211842000,-500.0,0.00014999,2]
[422654672,1779211842000,-500.0,0.00014999,2]
[422654666,1779211842000,-500.0,0.00014999,2]
[422654638,1779211842000,-500.0,0.00014999,2]
[422654663,1779211842000,-500.0,0.00014999,2]
[422654685,1779211842000,-500.0,0.00014999,2]
[422654640,1779211842000,-500.0,0.00014999,2]
[422654642,1779211842000,-500.0,0.00014999,2]
[422654639,1779211842000,-500.0,0.00014999,2]
[422654637,1779211842000,-500.0,0.00014999,2]
[422654654,1779211842000,-502.26457944,0.00014999,2]
[422654644,1779211842000,-500.0,0.00014999,2]
[422654660,1779211842000,-500.0,0.00014999,2]
[422654656,1779211842000,-212.82417601,0.00014999,2]
[422654661,1779211842000,-500.0,0.00014999,2]
[422654659,1779211842000,-531.04142936,0.00014999,2]
[422654647,1779211842000,-504.85547194,0.00014999,2]
[422654652,1779211842000,-500.0,0.00014999,2]
[422654650,1779211842000,-500.0,0.00014999,2]
[422654662,1779211842000,-500.0,0.00014999,2]
[422654657,1779211842000,-500.0,0.00014999,2]
[422654658,1779211842000,-500.0,0.00014999,2]
[422654664,1779211842000,-580.58046492,0.00014999,2]
[422654687,1779211842000,-500.0,0.00014999,2]
[422654682,1779211842000,-500.0,0.00014999,2]
[422654683,1779211842000,-509.12282674,0.00014999,2]
[422654711,1779211842000,-500.0,0.00014999,2]
[422654707,1779211842000,-195.76615637,0.00014999,2]
[422654709,1779211842000,-500.0,0.00014999,2]
[422654710,1779211842000,-500.0,0.00014999,2]
[422654712,1779211842000,-500.0,0.00014999,2]
[422654713,1779211842000,-500.0,0.00014999,2]
[422654719,1779211842000,-300.0,0.00014999,2]
[422654714,1779211842000,-500.0,0.00014999,2]
[422654686,1779211842000,-500.0,0.00014999,2]
[422654715,1779211842000,-850.44540735,0.00014999,2]
[422654716,1779211842000,-500.0,0.00014999,2]
[422654717,1779211842000,-300.0,0.00014999,2]
[422654718,1779211842000,-679.45236454,0.00014999,2]
[422654722,1779211842000,-300.0,0.00014999,2]
[422654721,1779211842000,-300.0,0.00014999,2]
[422654723,1779211842000,-666.0,0.00014999,2]
[422654725,1779211842000,-6392515.47951232,0.00015,2]
[422654705,1779211842000,-500.0,0.00014999,2]
[422654706,1779211842000,-500.0,0.00014999,2]
[422654720,1779211842000,-300.0,0.00014999,2]
[422654704,1779211842000,-500.0,0.00014999,2]
[422654688,1779211842000,-500.0,0.00014999,2]
[422654692,1779211842000,-500.0,0.00014999,2]
[422654724,1779211842000,-300.0,0.00014999,2]
[422654689,1779211842000,-500.0,0.00014999,2]
[422654691,1779211842000,-500.0,0.00014999,2]
[422654693,1779211842000,-500.0,0.00014999,2]
[422654690,1779211842000,-500.0,0.00014999,2]
[422654694,1779211842000,-500.0,0.00014999,2]
[422654695,1779211842000,-500.0,0.00014999,2]
[422654696,1779211842000,-500.0,0.00014999,2]
[422654697,1779211842000,-500.0,0.00014999,2]
[422654698,1779211842000,-500.0,0.00014999,2]
[422654699,1779211842000,-500.0,0.00014999,2]
[422654700,1779211842000,-500.0,0.00014999,2]
[422654702,1779211842000,-500.0,0.00014999,2]
[422654703,1779211842000,-500.0,0.00014999,2]
[422654701,1779211842000,-500.0,0.00014999,2]
[422654708,1779211842000,-4405.7171847,0.00014999,2]
[422654733,1779211843000,-2595.52527996,0.0001383,2]
[422654735,1779211843000,-770.91758749,0.00015,2]
[422654736,1779211843000,-94.16320981,0.00015,2]
[422654734,1779211843000,-2260369.96492301,0.00015,2]
[422654740,1779211844000,-12403.557521,0.00015,2]
[422654739,1779211844000,-1165.5549093,0.00014999,2]
[422654737,1779211844000,-339.12719406,0.00015,2]
[422654738,1779211844000,-39813.13772422,0.00015,2]
[422654745,1779211846000,-3663.75221552,0.00015,2]
[422654744,1779211846000,-662.47250452,0.00015,2]
[422654743,1779211846000,-2595.52527996,0.000149,2]
[422654747,1779211847000,-62441.75000061,0.00015,2]
[422654751,1779212157000,152.0,0.00011401,7]
[422654752,1779212218000,3853.0,0.00030137,120]
[422654755,1779212464000,156.78,8.774e-05,2]
[422654754,1779212464000,2.08079295,6.646e-05,2]
[422654753,1779212464000,154.69920705,6.646e-05,2]
[422654757,1779212805000,-2.39965363,0.00011379,2]
[422654756,1779212805000,-156.78,0.00010903,2]
[422654758,1779212939000,435.2374533,0.0001,2]
[422654759,1779212940000,1000.0,0.00030136,120]
[422654760,1779212954000,-497.60034637,0.00011379,2]
[422654762,1779212954000,-807.32,0.00011479,2]
[422654761,1779212954000,-163.43,0.00011479,2]
[422654763,1779212954000,-184.89632019,0.00011893,2]
[422654764,1779213008000,1525.632524,7.945e-05,2]
[422654768,1779213032000,-150.0,0.00012418,2]
[422654769,1779213032000,-163.17,0.00012454,2]
[422654770,1779213032000,-198.8,0.00012455,2]
[422654771,1779213032000,-500.0,0.0001249,2]
[422654772,1779213032000,-200.0,0.00012503,2]
[422654773,1779213032000,-919.53701192,0.00012517,2]
[422654776,1779213032000,-5143.36,0.00012694,2]
[422654774,1779213032000,-1487.55,0.00012608,2]
[422654778,1779213032000,-150.99,0.00012798,2]
[422654767,1779213032000,-250.0,0.00011993,2]
[422654775,1779213032000,-1200.0,0.00012693,2]
[422654781,1779213032000,-999.99,0.00012798,2]
[422654782,1779213032000,-299.99,0.00012798,2]
[422654784,1779213032000,-364.45,0.00012798,2]
[422654780,1779213032000,-24999.99,0.00012798,2]
[422654783,1779213032000,-9999.99,0.00012798,2]
[422654779,1779213032000,-4999.99,0.00012798,2]
[422654777,1779213032000,-1200.0,0.00012798,2]
[422654786,1779213032000,-7964.17544618,0.00012798,2]
[422654785,1779213032000,-9999.99,0.00012798,2]
[422654797,1779213033000,-2035.81455382,0.00012798,2]
[422654798,1779213033000,-2035.91064938,0.00012798,2]
[422654832,1779213038000,-500.0,0.00013698,2]
[422654828,1779213038000,-163.69,0.00013688,2]
[422654830,1779213038000,-500.0,0.00013698,2]
[422654824,1779213038000,-4170.3749,0.00013268,2]
[422654829,1779213038000,-500.0,0.00013698,2]
[422654831,1779213038000,-509.12282674,0.00013698,2]
[422654833,1779213038000,-500.0,0.00013698,2]
[422654845,1779213038000,-500.0,0.00013698,2]
[422654834,1779213038000,-500.0,0.00013698,2]
[422654836,1779213038000,-500.0,0.00013698,2]
[422654837,1779213038000,-500.0,0.00013698,2]
[422654842,1779213038000,-500.0,0.00013698,2]
[422654840,1779213038000,-500.0,0.00013698,2]
[422654839,1779213038000,-500.0,0.00013698,2]
[422654827,1779213038000,-308.0,0.00013507,2]
[422654835,1779213038000,-500.0,0.00013698,2]
[422654826,1779213038000,-6803.7659,0.00013268,2]
[422654820,1779213038000,-150.0,0.00013167,2]
[422654823,1779213038000,-500.0,0.0001326,2]
[422654806,1779213038000,-350.79694041,0.00011279,2]
[422654807,1779213038000,-149.20305959,0.00011279,2]
[422654809,1779213038000,-142.10435345,0.00012798,2]
[422654808,1779213038000,-617.19499717,0.00012798,2]
[422654810,1779213038000,-1196.27,0.00012798,2]
[422654843,1779213038000,-500.0,0.00013698,2]
[422654821,1779213038000,-150.0,0.00013168,2]
[422654825,1779213038000,-99130.5674,0.00013268,2]
[422654817,1779213038000,-160.0,0.00012949,2]
[422654812,1779213038000,-2000.0,0.000128,2]
[422654813,1779213038000,-191.33,0.000128,2]
[422654818,1779213038000,-208.58623393,0.00012949,2]
[422654819,1779213038000,-156.78,0.00013031,2]
[422654814,1779213038000,-2533.27,0.000128,2]
[422654816,1779213038000,-807.32,0.00012914,2]
[422654822,1779213038000,-250.0,0.00013192,2]
[422654815,1779213038000,-26811.0,0.00012811,2]
[422654838,1779213038000,-500.0,0.00013698,2]
[422654811,1779213038000,-1146.85,0.000128,2]
[422654844,1779213038000,-500.0,0.00013698,2]
[422654868,1779213038000,-166.22900262,0.00013715,2]
[422654870,1779213038000,-166.66,0.00013836,2]
[422654869,1779213038000,-165.93,0.00013716,2]
[422654871,1779213038000,-2500.0,0.00013924,2]
[422654872,1779213038000,-1680.0,0.00013962,2]
[422654874,1779213038000,-500.0,0.00013972,2]
[422654876,1779213038000,-166.66,0.00013973,2]
[422654867,1779213038000,-166.66,0.00013699,2]
[422654879,1779213038000,-728.5,0.00014014,2]
[422654881,1779213038000,-280.0,0.00014038,2]
[422654885,1779213038000,-500.0,0.00014133,2]
[422654883,1779213038000,-166.66,0.0001411,2]
[422654894,1779213038000,-500.0,0.00014246,2]
[422654887,1779213038000,-500.0,0.00014133,2]
[422654889,1779213038000,-500.0,0.00014133,2]
[422654846,1779213038000,-500.0,0.00013698,2]
[422654897,1779213038000,-166.66,0.00014247,2]
[422654862,1779213038000,-500.0,0.00013698,2]
[422654891,1779213038000,-500.0,0.00014133,2]
[422654866,1779213038000,-200.0,0.00013699,2]
[422654865,1779213038000,-289.31,0.00013699,2]
[422654841,1779213038000,-500.0,0.00013698,2]
[422654847,1779213038000,-500.0,0.00013698,2]
[422654848,1779213038000,-500.0,0.00013698,2]
[422654852,1779213038000,-500.0,0.00013698,2]
[422654853,1779213038000,-500.0,0.00013698,2]
[422654851,1779213038000,-500.0,0.00013698,2]
[422654849,1779213038000,-500.0,0.00013698,2]
[422654850,1779213038000,-500.0,0.00013698,2]
[422654856,1779213038000,-195.76615637,0.00013698,2]
[422654857,1779213038000,-500.0,0.00013698,2]
[422654858,1779213038000,-500.0,0.00013698,2]
[422654855,1779213038000,-500.0,0.00013698,2]
[422654860,1779213038000,-500.0,0.00013698,2]
[422654861,1779213038000,-500.0,0.00013698,2]
[422654859,1779213038000,-500.0,0.00013698,2]
[422654864,1779213038000,-500.0,0.00013698,2]
[422654863,1779213038000,-500.0,0.00013698,2]
[422654998,1779213039000,-500.0,0.00014351,2]
[422654985,1779213039000,-500.0,0.00014351,2]
[422654992,1779213039000,-500.0,0.00014351,2]
[422654983,1779213039000,-500.0,0.00014351,2]
[422654981,1779213039000,-500.0,0.00014351,2]
[422654975,1779213039000,-504.95509463,0.00014351,2]
[422654977,1779213039000,-500.0,0.00014351,2]
[422654972,1779213039000,-500.0,0.00014351,2]
[422654968,1779213039000,-500.0,0.00014351,2]
[422654996,1779213039000,-500.0,0.00014351,2]
[422654966,1779213039000,-500.0,0.00014351,2]
[422654979,1779213039000,-500.0,0.00014351,2]
[422654990,1779213039000,-500.0,0.00014351,2]
[422655020,1779213039000,-500.0,0.00014351,2]
[422654994,1779213039000,-500.0,0.00014351,2]
[422655001,1779213039000,-500.0,0.00014351,2]
[422655015,1779213039000,-500.0,0.00014351,2]
[422655003,1779213039000,-500.0,0.00014351,2]
[422655013,1779213039000,-500.0,0.00014351,2]
[422655009,1779213039000,-500.0,0.00014351,2]
[422655005,1779213039000,-500.0,0.00014351,2]
[422655007,1779213039000,-500.0,0.00014351,2]
[422655018,1779213039000,-500.0,0.00014351,2]
[422655011,1779213039000,-500.0,0.00014351,2]
[422655024,1779213039000,-500.0,0.00014351,2]
[422655022,1779213039000,-500.0,0.00014351,2]
[422654964,1779213039000,-500.0,0.00014351,2]
[422654988,1779213039000,-500.0,0.00014351,2]
[422654970,1779213039000,-500.0,0.00014351,2]
[422654921,1779213039000,-500.0,0.00014257,2]
[422654962,1779213039000,-500.0,0.00014351,2]
[422654911,1779213039000,-150.0,0.00014257,2]
[422654900,1779213039000,-500.0,0.00014257,2]
[422654913,1779213039000,-150.0,0.00014257,2]
[422654917,1779213039000,-150.0,0.00014257,2]
[422654915,1779213039000,-150.0,0.00014257,2]
[422654905,1779213039000,-458.77621057,0.00014257,2]
[422654919,1779213039000,-150.0,0.00014257,2]
[422654909,1779213039000,-183.29837308,0.00014257,2]
[422654903,1779213039000,-500.0,0.00014257,2]
[422654925,1779213039000,-500.0,0.00014257,2]
[422654907,1779213039000,-150.0,0.00014257,2]
[422655027,1779213039000,-38361.21506313,0.00014351,2]
[422654923,1779213039000,-500.0,0.00014257,2]
[422654960,1779213039000,-500.0,0.00014351,2]
[422654927,1779213039000,-500.0,0.00014257,2]
[422654932,1779213039000,-500.0,0.00014257,2]
[422654934,1779213039000,-500.0,0.00014257,2]
[422654936,1779213039000,-500.0,0.00014257,2]
[422654940,1779213039000,-500.0,0.00014257,2]
[422654938,1779213039000,-500.0,0.00014257,2]
[422654942,1779213039000,-343.58301202,0.00014257,2]
[422654945,1779213039000,-150.0,0.00014257,2]
[422654947,1779213039000,-255.0,0.00014273,2]
[422654949,1779213039000,-4000.0,0.000143,5]
[422654951,1779213039000,-500.0,0.00014329,2]
[422654954,1779213039000,-807.32,0.00014349,2]
[422654956,1779213039000,-165.66477215,0.00014351,2]
[422654958,1779213039000,-367.60004062,0.00014351,2]
[422654930,1779213039000,-500.0,0.00014257,2]
[422655029,1779213039000,-19611.25,0.00014352,2]
[422655037,1779213039000,-2097.48,0.00014497,2]
[422655041,1779213039000,-163.17,0.00014529,2]
[422655064,1779213039000,-500.0,0.00014799,2]
[422655073,1779213039000,-500.0,0.00014799,2]
[422655070,1779213039000,-500.0,0.00014799,2]
[422655075,1779213039000,-500.0,0.00014799,2]
[422655077,1779213039000,-500.0,0.00014799,2]
[422655074,1779213039000,-500.0,0.00014799,2]
[422655068,1779213039000,-500.0,0.00014799,2]
[422655071,1779213039000,-500.0,0.00014799,2]
[422655072,1779213039000,-500.0,0.00014799,2]
[422655031,1779213039000,-166.66,0.00014384,2]
[422655080,1779213039000,-500.0,0.00014799,2]
[422655078,1779213039000,-500.0,0.00014799,2]
[422655079,1779213039000,-500.0,0.00014799,2]
[422655076,1779213039000,-500.0,0.00014799,2]
[422655082,1779213039000,-500.0,0.00014799,2]
[422655092,1779213039000,-500.0,0.00014799,2]
[422655086,1779213039000,-500.0,0.00014799,2]
[422655087,1779213039000,-500.0,0.00014799,2]
[422655081,1779213039000,-500.0,0.00014799,2]
[422655083,1779213039000,-500.0,0.00014799,2]
[422655085,1779213039000,-500.0,0.00014799,2]
[422655084,1779213039000,-500.0,0.00014799,2]
[422655093,1779213039000,-500.0,0.00014799,2]
[422655091,1779213039000,-500.0,0.00014799,2]
[422655088,1779213039000,-500.0,0.00014799,2]
[422655089,1779213039000,-500.0,0.00014799,2]
[422655090,1779213039000,-500.0,0.00014799,2]
[422655060,1779213039000,-500.0,0.00014799,2]
[422655065,1779213039000,-500.0,0.00014799,2]
[422655069,1779213039000,-500.0,0.00014799,2]
[422655063,1779213039000,-500.0,0.00014799,2]
[422655039,1779213039000,-500.0,0.0001452,2]
[422655059,1779213039000,-500.0,0.00014799,2]
[422655035,1779213039000,-165.93,0.00014471,2]
[422655034,1779213039000,-8000.0,0.000144,5]
[422655036,1779213039000,-2796.11,0.00014497,2]
[422655033,1779213039000,-2000.0,0.000144,2]
[422655038,1779213039000,-12000.0,0.000145,5]
[422655042,1779213039000,-500.0,0.00014599,2]
[422655044,1779213039000,-500.0,0.00014599,2]
[422655046,1779213039000,-16000.0,0.000146,5]
[422655045,1779213039000,-500.0,0.00014599,2]
[422655043,1779213039000,-500.0,0.00014599,2]
[422655048,1779213039000,-500.0,0.00014688,2]
[422655054,1779213039000,-3073.352,0.00014781,2]
[422655040,1779213039000,-250.0,0.00014523,2]
[422655049,1779213039000,-165.07351871,0.000147,2]
[422655053,1779213039000,-160.612138,0.000147,2]
[422655062,1779213039000,-500.0,0.00014799,2]
[422655057,1779213039000,-500.0,0.00014794,2]
[422655055,1779213039000,-835.64918686,0.0001479,2]
[422655058,1779213039000,-500.0,0.00014799,2]
[422655066,1779213039000,-500.0,0.00014799,2]
[422655061,1779213039000,-500.0,0.00014799,2]
[422655056,1779213039000,-835.64918686,0.0001479,2]
[422655051,1779213039000,-174.891179,0.000147,2]
[422655052,1779213039000,-5000.0,0.000147,2]
[422655047,1779213039000,-350.0,0.00014625,2]
[422655050,1779213039000,-20000.0,0.000147,5]
[422655067,1779213039000,-500.0,0.00014799,2]
[422655112,1779213040000,-299.36,0.00014799,2]
[422655111,1779213040000,-500.0,0.00014799,2]
[422655113,1779213040000,-2500000.0,0.000148,2]
[422655114,1779213040000,-2000.0,0.000148,2]
[422655118,1779213040000,-161.0,0.000148,2]
[422655115,1779213040000,-1500000.0,0.000148,2]
[422655117,1779213040000,-161.0,0.000148,2]
[422655116,1779213040000,-33191.258,0.000148,2]
[422655109,1779213040000,-500.0,0.00014799,2]
[422655105,1779213040000,-400.09160806,0.00014799,2]
[422655110,1779213040000,-500.0,0.00014799,2]
[422655096,1779213040000,-500.0,0.00014799,2]
[422655106,1779213040000,-500.0,0.00014799,2]
[422655104,1779213040000,-500.0,0.00014799,2]
[422655102,1779213040000,-500.0,0.00014799,2]
[422655100,1779213040000,-165.47552149,0.00014799,2]
[422655103,1779213040000,-259.96967271,0.00014799,2]
[422655099,1779213040000,-500.0,0.00014799,2]
[422655098,1779213040000,-500.0,0.00014799,2]
[422655101,1779213040000,-178.90083106,0.00014799,2]
[422655097,1779213040000,-500.0,0.00014799,2]
[422655095,1779213040000,-500.0,0.00014799,2]
[422655094,1779213040000,-500.0,0.00014799,2]
[422655108,1779213040000,-500.0,0.00014799,2]
[422655126,1779213040000,-500.0,0.00014899,2]
[422655107,1779213040000,-500.0,0.00014799,2]
[422655119,1779213040000,-4000.0,0.000148,5]
[422655147,1779213040000,-2263131.71920559,0.00015,2]
[422655145,1779213040000,-5331.9918835,0.00015,2]
[422655146,1779213040000,-1500.85211155,0.00015,2]
[422655120,1779213040000,-155.127,0.00014824,2]
[422655142,1779213040000,-280796.17206699,0.00015,2]
[422655143,1779213040000,-869957.86616744,0.00015,2]
[422655141,1779213040000,-170.25934081,0.00014999,2]
[422655140,1779213040000,-362775.533846,0.00014999,2]
[422655139,1779213040000,-25212.2842978,0.00014999,2]
[422655137,1779213040000,-500.0,0.00014998,2]
[422655130,1779213040000,-2398.0,0.000149,5]
[422655134,1779213040000,-471184.9756854,0.00014996,2]
[422655144,1779213040000,-865.17509332,0.000147,2]
[422655131,1779213040000,-4000.0,0.000149,5]
[422655135,1779213040000,-151.0,0.00014997,2]
[422655133,1779213040000,-835.64918686,0.0001499,2]
[422655132,1779213040000,-500.0,0.00014959,2]
[422655138,1779213040000,-291.54,0.00014998,2]
[422655127,1779213040000,-8247.791,0.000149,2]
[422655128,1779213040000,-3001.0,0.000149,5]
[422655124,1779213040000,-294.46,0.00014899,2]
[422655123,1779213040000,-200.0,0.00014878,2]
[422655122,1779213040000,-218.278216,0.00014847,2]
[422655125,1779213040000,-500.0,0.00014899,2]
[422655121,1779213040000,-225.44566,0.00014847,2]
[422655136,1779213040000,-151.0,0.00014997,2]
[422655160,1779213046000,-27.734613,0.00015,2]
[422655159,1779213046000,-282.811387,0.000147,2]
[422655162,1779213046000,-4737.98506466,0.00015,2]
[422655161,1779213046000,-2957.0969,0.00015,2]
[422655166,1779213079000,3005.35,0.00030137,120]
[422655177,1779213278000,367.85,7.377e-05,2]
[422655176,1779213278000,367.85,7.053e-05,2]
[422655175,1779213278000,367.85,6.729e-05,2]
[422655174,1779213278000,367.85,6.405e-05,2]
[422655179,1779213279000,367.85,8.025e-05,2]
[422655178,1779213279000,367.85,7.701e-05,2]
[422655180,1779213280000,367.85,8.348e-05,2]
[422655181,1779213280000,367.85,8.672e-05,2]
[422655185,1779213280000,367.85,9.968e-05,2]
[422655183,1779213280000,367.85,9.32e-05,2]
[422655184,1779213280000,367.85,9.644e-05,2]
[422655182,1779213280000,367.85,8.996e-05,2]
[422655189,1779213511000,159.44,0.00030082,120]
[422655190,1779213583000,150.0,1.11e-05,2]
[422655192,1779213583000,150.0,1.11e-05,2]
[422655191,1779213583000,150.0,1.11e-05,2]
[422655193,1779213862000,7223.82158909,0.0003013,120]
[422655194,1779213872000,7917.03572617,0.0003013,120]
[422655195,1779213902000,159.12,8.752e-05,2]
[422655196,1779213934000,43049.41146015,9.04e-05,2]
[422655198,1779214090000,576.81,5.616e-05,2]
[422655197,1779214090000,576.81,5.345e-05,2]
[422655200,1779214093000,576.81,6.156e-05,2]
[422655199,1779214093000,576.81,5.886e-05,2]
[422655202,1779214093000,576.81,6.697e-05,2]
[422655201,1779214093000,576.81,6.426e-05,2]
[422655205,1779214094000,576.81,7.508e-05,2]
[422655204,1779214094000,576.81,7.237e-05,2]
[422655203,1779214094000,576.81,6.967e-05,2]
[422655206,1779214094000,576.81,7.778e-05,2]
[422655210,1779214095000,576.81,8.859e-05,2]
[422655209,1779214095000,576.81,8.589e-05,2]
[422655208,1779214095000,576.81,8.319e-05,2]
[422655207,1779214095000,576.81,8.048e-05,2]
[422655211,1779214096000,576.81,9.13e-05,2]
[422655212,1779214096000,576.81,9.4e-05,2]
[422655214,1779214096000,576.81,9.94e-05,2]
[422655213,1779214096000,576.81,9.67e-05,2]
[422655216,1779214144000,1000.0,0.00030136,120]
[422655248,1779214232000,-1210.44,0.00010886,2]
[422655258,1779214232000,-1498.25,0.00011134,2]
[422655243,1779214232000,-299.99,0.00010862,2]
[422655253,1779214232000,-150.0,0.00010959,2]
[422655242,1779214232000,-150.99,0.00010862,2]
[422655240,1779214232000,-999.99,0.00010862,2]
[422655238,1779214232000,-9999.99,0.00010862,2]
[422655234,1779214232000,-12977.25815933,0.000107,2]
[422655228,1779214232000,-19611.25,0.00010573,2]
[422655224,1779214232000,-576.81,0.00010481,2]
[422655222,1779214232000,-1383.36,0.00010476,2]
[422655218,1779214232000,-576.81,0.00010211,2]
[422655232,1779214232000,-47022.74184067,0.000107,2]
[422655230,1779214232000,-150.0,0.00010699,2]
[422655219,1779214232000,-213.37737141,0.00010292,2]
[422655249,1779214232000,-960.02,0.00010886,2]
[422655226,1779214232000,-1200.0,0.00010572,2]
[422655261,1779214232000,-250.0,0.00011175,2]
[422655236,1779214232000,-1498.25,0.00010862,2]
[422655256,1779214232000,-150.0,0.00010959,2]
[422655246,1779214232000,-200.0,0.00010886,2]
[422655289,1779214232000,-2300.0,0.00011899,2]
[422655286,1779214232000,-35043.30209514,0.00011811,2]
[422655287,1779214232000,-8345.91554331,0.0001189,2]
[422655285,1779214232000,-255.0,0.00011737,2]
[422655280,1779214232000,-150.0,0.0001146,2]